[Event "Titled Tuesday Blitz March 21 Late 2023"]
[White "sebastianmarinp"]
[Black "Vaglio Munoz, Jaime"]
[BlackFideId "6500145"]
[WhiteElo "2302"]
[BlackElo "2199"]
[Result "1-0"]
[Round "03"]
[TimeControl "180+2"]
[Date "2023.03.21"]
[WhiteClock "0:01:09"]
[BlackClock "0:01:31"]

1. e4 {[%clk 0:03:00]}  c6 {[%clk 0:02:59]} 2. d4 {[%clk 0:03:00]}  d5 {[%clk 0:02:58]} 3. e5 {[%clk 0:03:00]}  c5 {[%clk 0:02:58]} 4. dxc5 {[%clk 0:02:59]}  Nc6 {[%clk 0:02:58]} 5. a3 {[%clk 0:02:58]}  Nxe5 {[%clk 0:02:54]} 6. b4 {[%clk 0:02:55]}  Nf6 {[%clk 0:02:42]} 7. Bb2 {[%clk 0:02:54]}  Ned7 {[%clk 0:02:38]} 8. Nf3 {[%clk 0:02:49]}  g6 {[%clk 0:02:36]} 9. c4 {[%clk 0:02:43]}  dxc4 {[%clk 0:02:32]} 10. Bxc4 {[%clk 0:02:44]}  Bg7 {[%clk 0:02:31]} 11. Bxf7+ {[%clk 0:02:21]}  Kxf7 {[%clk 0:02:24]} 12. Ng5+ {[%clk 0:02:21]}  Ke8 {[%clk 0:02:15]} 13. Ne6 {[%clk 0:02:17]}  Kf7 {[%clk 0:02:09]} 14. Nxd8+ {[%clk 0:02:12]}  Rxd8 {[%clk 0:02:10]} 15. Qb3+ {[%clk 0:02:05]}  e6 {[%clk 0:02:09]} 16. O-O {[%clk 0:02:03]}  Nb8 {[%clk 0:01:55]} 17. Nc3 {[%clk 0:01:57]}  Bd7 {[%clk 0:01:54]} 18. Rad1 {[%clk 0:01:50]}  Nc6 {[%clk 0:01:51]} 19. Rfe1 {[%clk 0:01:48]}  a6 {[%clk 0:01:43]} 20. Rd6 {[%clk 0:01:39]}  Ne8 {[%clk 0:01:36]} 21. Rxd7+ {[%clk 0:01:37]}  Rxd7 {[%clk 0:01:35]} 22. Qxe6+ {[%clk 0:01:37]}  Kf8 {[%clk 0:01:35]} 23. Qxd7 {[%clk 0:01:34]}  Nf6 {[%clk 0:01:34]} 24. Qxb7 {[%clk 0:01:30]}  Rd8 {[%clk 0:01:33]} 25. Qxc6 {[%clk 0:01:22]}  Kg8 {[%clk 0:01:32]} 26. Qe6+ {[%clk 0:01:14]}  Kh8 {[%clk 0:01:31]} 27. c6 {[%clk 0:01:09]} 1-0


[Site "https://www.chess.com"]

[Event "Titled Tuesday Blitz March 21 Late 2023"]
[White "Einarsson, Halldor Gretar"]
[Black "Becerra, Juan David"]
[WhiteFideId "2300150"]
[BlackFideId "4404998"]
[WhiteElo "2142"]
[BlackElo "2282"]
[Result "0-1"]
[Round "03"]
[TimeControl "180+2"]
[Date "2023.03.21"]
[WhiteClock "0:00:01"]
[BlackClock "0:00:12"]

1. d4 {[%clk 0:02:59]}  Nf6 {[%clk 0:02:57]} 2. c4 {[%clk 0:02:59]}  c5 {[%clk 0:02:56]} 3. d5 {[%clk 0:02:59]}  e6 {[%clk 0:02:56]} 4. Nc3 {[%clk 0:02:58]}  exd5 {[%clk 0:02:56]} 5. cxd5 {[%clk 0:02:58]}  d6 {[%clk 0:02:55]} 6. e4 {[%clk 0:02:58]}  a6 {[%clk 0:02:54]} 7. a4 {[%clk 0:02:57]}  g6 {[%clk 0:02:54]} 8. h3 {[%clk 0:02:57]}  Bg7 {[%clk 0:02:54]} 9. Nf3 {[%clk 0:02:57]}  O-O {[%clk 0:02:53]} 10. Bd3 {[%clk 0:02:57]}  Nbd7 {[%clk 0:02:36]} 11. O-O {[%clk 0:02:56]}  Ne8 {[%clk 0:02:29]} 12. Bf4 {[%clk 0:02:45]}  Qe7 {[%clk 0:02:23]} 13. Re1 {[%clk 0:02:43]}  Ne5 {[%clk 0:02:23]} 14. Nxe5 {[%clk 0:02:18]}  Bxe5 {[%clk 0:02:22]} 15. Qd2 {[%clk 0:02:08]}  Rb8 {[%clk 0:02:10]} 16. a5 {[%clk 0:02:02]}  Nc7 {[%clk 0:02:10]} 17. Bg5 {[%clk 0:01:45]}  f6 {[%clk 0:01:50]} 18. Be3 {[%clk 0:01:38]}  f5 {[%clk 0:01:28]} 19. Bg5 {[%clk 0:01:32]}  Qf7 {[%clk 0:01:28]} 20. f4 {[%clk 0:01:09]}  Bd4+ {[%clk 0:01:23]} 21. Kh1 {[%clk 0:01:07]}  Re8 {[%clk 0:01:19]} 22. exf5 {[%clk 0:00:48]}  Bxf5 {[%clk 0:01:20]} 23. Bc4 {[%clk 0:00:36]}  Rxe1+ {[%clk 0:01:17]} 24. Rxe1 {[%clk 0:00:35]}  Re8 {[%clk 0:01:18]} 25. g4 {[%clk 0:00:24]}  Bd7 {[%clk 0:00:36]} 26. Ne4 {[%clk 0:00:21]}  Rxe4 {[%clk 0:00:36]} 27. Rxe4 {[%clk 0:00:20]}  Nxd5 {[%clk 0:00:35]} 28. Rxd4 {[%clk 0:00:19]}  cxd4 {[%clk 0:00:34]} 29. Qxd4 {[%clk 0:00:19]}  Bc6 {[%clk 0:00:34]} 30. Kh2 {[%clk 0:00:17]}  Qe6 {[%clk 0:00:29]} 31. Bh6 {[%clk 0:00:16]}  Qf7 {[%clk 0:00:22]} 32. Qe4 {[%clk 0:00:14]}  g5 {[%clk 0:00:11]} 33. f5 {[%clk 0:00:11]}  Kh8 {[%clk 0:00:11]} 34. Qd4+ {[%clk 0:00:11]}  Qf6 {[%clk 0:00:11]} 35. Qxf6+ {[%clk 0:00:09]}  Nxf6 {[%clk 0:00:12]} 36. Bxg5 {[%clk 0:00:09]}  Ne4 {[%clk 0:00:12]} 37. Be3 {[%clk 0:00:07]}  d5 {[%clk 0:00:12]} 38. Bd3 {[%clk 0:00:05]}  Kg8 {[%clk 0:00:13]} 39. Bd4 {[%clk 0:00:04]}  Nd6 {[%clk 0:00:13]} 40. Bc5 {[%clk 0:00:04]}  Nc4 {[%clk 0:00:10]} 41. Bxc4 {[%clk 0:00:02]}  dxc4 {[%clk 0:00:10]} 42. Kg3 {[%clk 0:00:02]}  Kf7 {[%clk 0:00:11]} 43. Kf4 {[%clk 0:00:02]}  Ba4 {[%clk 0:00:11]} 44. Ke5 {[%clk 0:00:02]}  Bc2 {[%clk 0:00:12]} 45. h4 {[%clk 0:00:02]}  Bd1 {[%clk 0:00:11]} 46. g5 {[%clk 0:00:02]}  Bh5 {[%clk 0:00:11]} 47. Kd5 {[%clk 0:00:01]}  Bg4 {[%clk 0:00:12]} 0-1


[Site "https://www.chess.com"]

[Event "Titled Tuesday Blitz March 21 Late 2023"]
[White "Khandelwal, Ankush"]
[Black "Skaric, Djuro"]
[WhiteFideId "413470"]
[BlackFideId "934569"]
[WhiteElo "2263"]
[BlackElo "2282"]
[Result "1-0"]
[Round "03"]
[TimeControl "180+2"]
[Date "2023.03.21"]
[WhiteClock "0:01:17"]
[BlackClock "0:01:50"]

1. e4 {[%clk 0:03:00]}  d6 {[%clk 0:02:55]} 2. d4 {[%clk 0:02:59]}  g6 {[%clk 0:02:56]} 3. Nc3 {[%clk 0:02:50]}  Bg7 {[%clk 0:02:56]} 4. f4 {[%clk 0:02:48]}  Nf6 {[%clk 0:02:56]} 5. Nf3 {[%clk 0:02:45]}  Nc6 {[%clk 0:02:56]} 6. Be3 {[%clk 0:02:30]}  Ng4 {[%clk 0:02:54]} 7. Bg1 {[%clk 0:02:23]}  h5 {[%clk 0:02:53]} 8. h3 {[%clk 0:02:15]}  Nh6 {[%clk 0:02:53]} 9. d5 {[%clk 0:02:01]}  Nb8 {[%clk 0:02:50]} 10. Bd4 {[%clk 0:02:01]}  Kf8 {[%clk 0:02:44]} 11. Bxg7+ {[%clk 0:01:57]}  Kxg7 {[%clk 0:02:44]} 12. Qd4+ {[%clk 0:01:58]}  f6 {[%clk 0:02:44]} 13. O-O-O {[%clk 0:01:57]}  a6 {[%clk 0:02:41]} 14. Kb1 {[%clk 0:01:56]}  b5 {[%clk 0:02:41]} 15. Nh4 {[%clk 0:01:54]}  Bb7 {[%clk 0:02:40]} 16. g4 {[%clk 0:01:44]}  hxg4 {[%clk 0:02:39]} 17. hxg4 {[%clk 0:01:45]}  Nd7 {[%clk 0:02:38]} 18. g5 {[%clk 0:01:43]}  Nf7 {[%clk 0:02:32]} 19. Bd3 {[%clk 0:01:42]}  c5 {[%clk 0:02:16]} 20. dxc6 {[%clk 0:01:42]}  Bxc6 {[%clk 0:02:16]} 21. gxf6+ {[%clk 0:01:38]}  exf6 {[%clk 0:02:15]} 22. Rdg1 {[%clk 0:01:36]}  Rh6 {[%clk 0:02:14]} 23. Nf5+ {[%clk 0:01:36]}  Kf8 {[%clk 0:02:14]} 24. Nxh6 {[%clk 0:01:35]}  g5 {[%clk 0:02:07]} 25. Nxf7 {[%clk 0:01:32]}  Kxf7 {[%clk 0:02:07]} 26. Rh7+ {[%clk 0:01:32]}  Kg8 {[%clk 0:02:05]} 27. Rgh1 {[%clk 0:01:32]}  Nf8 {[%clk 0:02:04]} 28. Rh8+ {[%clk 0:01:25]}  Kg7 {[%clk 0:02:04]} 29. fxg5 {[%clk 0:01:24]}  Ne6 {[%clk 0:01:54]} 30. gxf6+ {[%clk 0:01:17]}  Qxf6 {[%clk 0:01:52]} 31. R1h7+ {[%clk 0:01:16]}  Kg6 {[%clk 0:01:50]} 32. Rh6+ {[%clk 0:01:17]}  Kg5 {[%clk 0:01:50]} 33. Qxf6+ {[%clk 0:01:17]} 1-0


[Site "https://www.chess.com"]

[Event "Titled Tuesday Blitz March 21 Late 2023"]
[White "Tymrakiewicz, Rafal"]
[Black "Stanisz, Patryk"]
[WhiteFideId "1108832"]
[BlackFideId "1123106"]
[WhiteElo "2151"]
[BlackElo "2069"]
[Result "0-1"]
[Round "03"]
[TimeControl "180+2"]
[Date "2023.03.21"]
[WhiteClock "0:00:21"]
[BlackClock "0:00:08"]

1. d4 {[%clk 0:02:45]}  d5 {[%clk 0:02:59]} 2. Bg5 {[%clk 0:02:44]}  Nf6 {[%clk 0:02:55]} 3. e3 {[%clk 0:02:43]}  Bf5 {[%clk 0:02:54]} 4. c4 {[%clk 0:02:43]}  c6 {[%clk 0:02:53]} 5. Nc3 {[%clk 0:02:41]}  Nbd7 {[%clk 0:02:48]} 6. Qb3 {[%clk 0:02:33]}  Qb6 {[%clk 0:02:47]} 7. c5 {[%clk 0:02:28]}  Qxb3 {[%clk 0:02:23]} 8. axb3 {[%clk 0:02:29]}  h6 {[%clk 0:02:22]} 9. Bh4 {[%clk 0:02:26]}  g5 {[%clk 0:02:09]} 10. Bg3 {[%clk 0:02:26]}  Nh5 {[%clk 0:02:05]} 11. Kd2 {[%clk 0:02:07]}  Nxg3 {[%clk 0:01:37]} 12. hxg3 {[%clk 0:02:07]}  e5 {[%clk 0:01:38]} 13. Bd3 {[%clk 0:02:01]}  Bxd3 {[%clk 0:01:32]} 14. Kxd3 {[%clk 0:02:02]}  exd4 {[%clk 0:01:31]} 15. exd4 {[%clk 0:02:01]}  Bg7 {[%clk 0:01:13]} 16. Re1+ {[%clk 0:01:58]}  Kd8 {[%clk 0:01:13]} 17. g4 {[%clk 0:01:52]}  Re8 {[%clk 0:01:11]} 18. Nge2 {[%clk 0:01:52]}  Nf6 {[%clk 0:01:04]} 19. f3 {[%clk 0:01:52]}  b6 {[%clk 0:00:52]} 20. cxb6 {[%clk 0:01:09]}  axb6 {[%clk 0:00:51]} 21. Ng3 {[%clk 0:01:09]}  Bf8 {[%clk 0:00:43]} 22. Nf5 {[%clk 0:01:05]}  Rxe1 {[%clk 0:00:42]} 23. Rxe1 {[%clk 0:01:06]}  Kd7 {[%clk 0:00:40]} 24. Na4 {[%clk 0:01:01]}  Rb8 {[%clk 0:00:37]} 25. Rh1 {[%clk 0:00:53]}  Ng8 {[%clk 0:00:36]} 26. Re1 {[%clk 0:00:40]}  Nf6 {[%clk 0:00:34]} 27. Kc3 {[%clk 0:00:37]}  h5 {[%clk 0:00:34]} 28. gxh5 {[%clk 0:00:34]}  Nxh5 {[%clk 0:00:33]} 29. g3 {[%clk 0:00:35]}  Ng7 {[%clk 0:00:21]} 30. Nh6 {[%clk 0:00:32]}  f6 {[%clk 0:00:14]} 31. b4 {[%clk 0:00:32]}  Bd6 {[%clk 0:00:13]} 32. g4 {[%clk 0:00:26]}  Ne6 {[%clk 0:00:12]} 33. Nf5 {[%clk 0:00:22]}  Bf8 {[%clk 0:00:09]} 34. Kb3 {[%clk 0:00:20]}  Nf4 {[%clk 0:00:07]} 35. Re3 {[%clk 0:00:20]}  Ng2 {[%clk 0:00:06]} 36. Re2 {[%clk 0:00:20]}  Nf4 {[%clk 0:00:06]} 37. Re3 {[%clk 0:00:20]}  Ng2 {[%clk 0:00:06]} 38. Rd3 {[%clk 0:00:20]}  Nf4 {[%clk 0:00:06]} 39. Rd2 {[%clk 0:00:20]}  Kc7 {[%clk 0:00:04]} 40. Nc3 {[%clk 0:00:20]}  Ra8 {[%clk 0:00:04]} 41. b5 {[%clk 0:00:20]}  Ra1 {[%clk 0:00:03]} 42. bxc6 {[%clk 0:00:19]}  Kxc6 {[%clk 0:00:04]} 43. Rc2 {[%clk 0:00:19]}  Kb7 {[%clk 0:00:04]} 44. Nb5 {[%clk 0:00:19]}  Rf1 {[%clk 0:00:03]} 45. Nbd6+ {[%clk 0:00:19]}  Bxd6 {[%clk 0:00:03]} 46. Nxd6+ {[%clk 0:00:20]}  Ka6 {[%clk 0:00:03]} 47. Rc3 {[%clk 0:00:19]}  Ne2 {[%clk 0:00:03]} 48. Re3 {[%clk 0:00:18]}  Rxf3 {[%clk 0:00:04]} 49. Rxf3 {[%clk 0:00:18]}  Nxd4+ {[%clk 0:00:05]} 50. Kb4 {[%clk 0:00:18]}  Nxf3 {[%clk 0:00:05]} 51. Ne8 {[%clk 0:00:17]}  f5 {[%clk 0:00:02]} 52. Nc7+ {[%clk 0:00:18]}  Kb7 {[%clk 0:00:02]} 53. Nxd5 {[%clk 0:00:18]}  fxg4 {[%clk 0:00:03]} 54. Ne3 {[%clk 0:00:18]}  g3 {[%clk 0:00:03]} 55. Kc3 {[%clk 0:00:18]}  Ne5 {[%clk 0:00:03]} 56. Kd4 {[%clk 0:00:18]}  Nf3+ {[%clk 0:00:02]} 57. Ke4 {[%clk 0:00:18]}  Nd2+ {[%clk 0:00:01]} 58. Kf5 {[%clk 0:00:18]}  Nc4 {[%clk 0:00:02]} 59. Nxc4 {[%clk 0:00:18]}  g2 {[%clk 0:00:02]} 60. Nd6+ {[%clk 0:00:18]}  Kc6 {[%clk 0:00:02]} 61. Nf7 {[%clk 0:00:17]}  g1=Q {[%clk 0:00:01]} 62. Ne5+ {[%clk 0:00:18]}  Kb5 {[%clk 0:00:02]} 63. Ke4 {[%clk 0:00:18]}  Qe1+ {[%clk 0:00:02]} 64. Kd4 {[%clk 0:00:18]}  Qxe5+ {[%clk 0:00:02]} 65. Kxe5 {[%clk 0:00:18]}  Kb4 {[%clk 0:00:03]} 66. Kf5 {[%clk 0:00:18]}  Kb3 {[%clk 0:00:04]} 67. Kxg5 {[%clk 0:00:18]}  Kxb2 {[%clk 0:00:05]} 68. Kf5 {[%clk 0:00:19]}  b5 {[%clk 0:00:06]} 69. Ke5 {[%clk 0:00:19]}  b4 {[%clk 0:00:07]} 70. Kd4 {[%clk 0:00:20]}  b3 {[%clk 0:00:07]} 71. Kd3 {[%clk 0:00:20]}  Ka2 {[%clk 0:00:08]} 72. Kc3 {[%clk 0:00:19]}  b2 {[%clk 0:00:09]} 73. Kb4 {[%clk 0:00:20]}  b1=Q+ {[%clk 0:00:09]} 74. Ka4 {[%clk 0:00:21]}  Qd1+ {[%clk 0:00:08]} 0-1


[Site "https://www.chess.com"]

[Event "Titled Tuesday Blitz March 21 Late 2023"]
[White "monkins"]
[Black "Meissner, Felix"]
[BlackFideId "24671827"]
[WhiteElo "2248"]
[BlackElo "2350"]
[Result "0-1"]
[Round "03"]
[TimeControl "180+2"]
[Date "2023.03.21"]
[WhiteClock "0:00:01"]
[BlackClock "0:02:12"]

1. Nf3 {[%clk 0:03:00]}  d5 {[%clk 0:02:58]} 2. c4 {[%clk 0:03:01]}  e6 {[%clk 0:02:56]} 3. g3 {[%clk 0:03:01]}  Nf6 {[%clk 0:02:54]} 4. Bg2 {[%clk 0:03:01]}  a6 {[%clk 0:02:55]} 5. cxd5 {[%clk 0:02:56]}  exd5 {[%clk 0:02:54]} 6. O-O {[%clk 0:02:56]}  Be7 {[%clk 0:02:55]} 7. b3 {[%clk 0:02:53]}  O-O {[%clk 0:02:55]} 8. Bb2 {[%clk 0:02:53]}  c5 {[%clk 0:02:54]} 9. d4 {[%clk 0:02:52]}  c4 {[%clk 0:02:55]} 10. Ne5 {[%clk 0:02:46]}  cxb3 {[%clk 0:02:49]} 11. Qxb3 {[%clk 0:02:45]}  Nc6 {[%clk 0:02:50]} 12. Nxc6 {[%clk 0:02:33]}  bxc6 {[%clk 0:02:48]} 13. Nd2 {[%clk 0:02:30]}  Bf5 {[%clk 0:02:43]} 14. Qc3 {[%clk 0:02:12]}  Qd7 {[%clk 0:02:40]} 15. Nf3 {[%clk 0:02:09]}  Ne4 {[%clk 0:02:40]} 16. Qe3 {[%clk 0:01:57]}  f6 {[%clk 0:02:39]} 17. Ba3 {[%clk 0:01:56]}  Rfe8 {[%clk 0:02:37]} 18. Bxe7 {[%clk 0:01:53]}  Rxe7 {[%clk 0:02:38]} 19. Qb3 {[%clk 0:01:35]}  Nd6 {[%clk 0:02:36]} 20. Rfe1 {[%clk 0:01:23]}  Be4 {[%clk 0:02:36]} 21. Nd2 {[%clk 0:01:17]}  Bxg2 {[%clk 0:02:35]} 22. Kxg2 {[%clk 0:01:17]}  Rae8 {[%clk 0:02:34]} 23. e3 {[%clk 0:01:09]}  h5 {[%clk 0:02:34]} 24. h4 {[%clk 0:01:00]}  g5 {[%clk 0:02:33]} 25. hxg5 {[%clk 0:00:59]}  fxg5 {[%clk 0:02:33]} 26. Nf3 {[%clk 0:00:54]}  Ne4 {[%clk 0:02:31]} 27. Rh1 {[%clk 0:00:42]}  Qf5 {[%clk 0:02:30]} 28. Qb2 {[%clk 0:00:19]}  Rf8 {[%clk 0:02:29]} 29. Ne5 {[%clk 0:00:12]}  Qxf2+ {[%clk 0:02:27]} 30. Qxf2 {[%clk 0:00:11]}  Rxf2+ {[%clk 0:02:27]} 31. Kh3 {[%clk 0:00:08]}  Rc2 {[%clk 0:02:21]} 32. Rac1 {[%clk 0:00:07]}  Rxa2 {[%clk 0:02:15]} 33. Rhf1 {[%clk 0:00:06]}  g4+ {[%clk 0:02:14]} 34. Kh4 {[%clk 0:00:01]}  Rh2# {[%clk 0:02:12]} 0-1


[Site "https://www.chess.com"]

[Event "Titled Tuesday Blitz March 21 Late 2023"]
[White "olga-belka"]
[Black "Meunier-Pion, Jean"]
[BlackFideId "20685327"]
[WhiteElo "2233"]
[BlackElo "2124"]
[Result "1-0"]
[Round "03"]
[TimeControl "180+2"]
[Date "2023.03.21"]
[WhiteClock "0:00:06"]
[BlackClock "0:00:01"]

1. e4 {[%clk 0:02:59]}  e5 {[%clk 0:02:59]} 2. Nf3 {[%clk 0:02:58]}  Nc6 {[%clk 0:02:59]} 3. d4 {[%clk 0:02:58]}  exd4 {[%clk 0:02:59]} 4. Nxd4 {[%clk 0:02:58]}  Nf6 {[%clk 0:03:00]} 5. Nxc6 {[%clk 0:02:57]}  bxc6 {[%clk 0:02:58]} 6. e5 {[%clk 0:02:57]}  Qe7 {[%clk 0:02:53]} 7. Qe2 {[%clk 0:02:56]}  Nd5 {[%clk 0:02:52]} 8. h4 {[%clk 0:02:55]}  g6 {[%clk 0:01:52]} 9. c4 {[%clk 0:02:48]}  Nb4 {[%clk 0:01:48]} 10. a3 {[%clk 0:02:44]}  Na6 {[%clk 0:01:43]} 11. Nc3 {[%clk 0:02:41]}  Bg7 {[%clk 0:01:42]} 12. Bf4 {[%clk 0:02:34]}  O-O {[%clk 0:01:37]} 13. g3 {[%clk 0:02:27]}  Re8 {[%clk 0:01:37]} 14. Ne4 {[%clk 0:02:09]}  d5 {[%clk 0:01:24]} 15. cxd5 {[%clk 0:01:38]}  cxd5 {[%clk 0:01:21]} 16. Nc3 {[%clk 0:01:37]}  d4 {[%clk 0:01:18]} 17. Nd5 {[%clk 0:01:31]}  Qc5 {[%clk 0:01:12]} 18. Bg2 {[%clk 0:01:26]}  c6 {[%clk 0:00:41]} 19. Rc1 {[%clk 0:01:16]}  Qa5+ {[%clk 0:00:41]} 20. Bd2 {[%clk 0:01:15]}  d3 {[%clk 0:00:24]} 21. Bxa5 {[%clk 0:01:04]}  dxe2 {[%clk 0:00:24]} 22. Nc7 {[%clk 0:00:49]}  Nxc7 {[%clk 0:00:23]} 23. Bxc7 {[%clk 0:00:48]}  Bb7 {[%clk 0:00:20]} 24. Kxe2 {[%clk 0:00:39]}  Bxe5 {[%clk 0:00:18]} 25. Bxe5 {[%clk 0:00:38]}  Rxe5+ {[%clk 0:00:19]} 26. Kf1 {[%clk 0:00:39]}  Rae8 {[%clk 0:00:15]} 27. Bf3 {[%clk 0:00:27]}  Ba6+ {[%clk 0:00:14]} 28. Kg2 {[%clk 0:00:27]}  c5 {[%clk 0:00:15]} 29. Rhd1 {[%clk 0:00:25]}  Kg7 {[%clk 0:00:15]} 30. Rd7 {[%clk 0:00:23]}  Be2 {[%clk 0:00:14]} 31. Bd5 {[%clk 0:00:17]}  R8e7 {[%clk 0:00:11]} 32. Rxe7 {[%clk 0:00:16]}  Rxe7 {[%clk 0:00:12]} 33. Rxc5 {[%clk 0:00:15]}  h5 {[%clk 0:00:11]} 34. b4 {[%clk 0:00:14]}  Bd3 {[%clk 0:00:11]} 35. Bf3 {[%clk 0:00:13]}  Rd7 {[%clk 0:00:10]} 36. a4 {[%clk 0:00:12]}  Bf5 {[%clk 0:00:06]} 37. b5 {[%clk 0:00:11]}  Kf6 {[%clk 0:00:06]} 38. Rc6+ {[%clk 0:00:10]}  Ke5 {[%clk 0:00:06]} 39. a5 {[%clk 0:00:09]}  Kd4 {[%clk 0:00:02]} 40. b6 {[%clk 0:00:08]}  axb6 {[%clk 0:00:02]} 41. axb6 {[%clk 0:00:08]}  Rd8 {[%clk 0:00:01]} 42. b7 {[%clk 0:00:08]}  f6 {[%clk 0:00:01]} 43. Ra6 {[%clk 0:00:06]} 1-0


[Site "https://www.chess.com"]

[Event "Titled Tuesday Blitz March 21 Late 2023"]
[White "Lorenzo De La Riva, Lazaro"]
[Black "mestrefeitosa19"]
[WhiteFideId "2268809"]
[WhiteElo "2294"]
[BlackElo "2230"]
[Result "1/2-1/2"]
[Round "03"]
[TimeControl "180+2"]
[Date "2023.03.21"]
[WhiteClock "0:00:15"]
[BlackClock "0:00:05"]

1. d3 {[%clk 0:03:00]}  d5 {[%clk 0:02:56]} 2. Nf3 {[%clk 0:02:59]}  Nf6 {[%clk 0:02:54]} 3. g3 {[%clk 0:02:58]}  e6 {[%clk 0:02:48]} 4. Bg2 {[%clk 0:02:59]}  Be7 {[%clk 0:02:49]} 5. b3 {[%clk 0:02:58]}  O-O {[%clk 0:02:49]} 6. Bb2 {[%clk 0:02:58]}  b6 {[%clk 0:02:50]} 7. O-O {[%clk 0:02:58]}  Bb7 {[%clk 0:02:51]} 8. Nbd2 {[%clk 0:02:58]}  Nbd7 {[%clk 0:02:51]} 9. Qe1 {[%clk 0:02:56]}  c5 {[%clk 0:02:52]} 10. e4 {[%clk 0:02:56]}  Rc8 {[%clk 0:02:48]} 11. e5 {[%clk 0:02:55]}  Ne8 {[%clk 0:02:47]} 12. h4 {[%clk 0:02:53]}  d4 {[%clk 0:02:47]} 13. a4 {[%clk 0:02:44]}  g6 {[%clk 0:02:47]} 14. Nc4 {[%clk 0:02:42]}  Ng7 {[%clk 0:02:41]} 15. Bc1 {[%clk 0:02:40]}  Nf5 {[%clk 0:02:41]} 16. Bf4 {[%clk 0:02:36]}  Qc7 {[%clk 0:02:40]} 17. Nfd2 {[%clk 0:02:33]}  Bxg2 {[%clk 0:02:39]} 18. Kxg2 {[%clk 0:02:33]}  a6 {[%clk 0:02:27]} 19. Ne4 {[%clk 0:02:30]}  b5 {[%clk 0:02:13]} 20. axb5 {[%clk 0:02:31]}  axb5 {[%clk 0:02:13]} 21. Ncd6 {[%clk 0:02:31]}  Bxd6 {[%clk 0:02:09]} 22. exd6 {[%clk 0:02:30]}  Qc6 {[%clk 0:02:01]} 23. g4 {[%clk 0:02:28]}  Nxh4+ {[%clk 0:01:47]} 24. Kg3 {[%clk 0:02:27]}  f5 {[%clk 0:01:48]} 25. Kxh4 {[%clk 0:02:08]}  fxe4 {[%clk 0:01:48]} 26. Bg3 {[%clk 0:02:03]}  e5 {[%clk 0:01:25]} 27. Qxe4 {[%clk 0:01:50]}  Qxd6 {[%clk 0:01:25]} 28. Ra7 {[%clk 0:01:46]}  Qe6 {[%clk 0:01:14]} 29. Re1 {[%clk 0:01:38]}  Nf6 {[%clk 0:01:13]} 30. Qe2 {[%clk 0:01:32]}  Rce8 {[%clk 0:00:47]} 31. f3 {[%clk 0:01:29]}  Nd7 {[%clk 0:00:43]} 32. Kh3 {[%clk 0:01:24]}  h5 {[%clk 0:00:41]} 33. Kg2 {[%clk 0:01:21]}  hxg4 {[%clk 0:00:41]} 34. fxg4 {[%clk 0:01:21]}  Rf7 {[%clk 0:00:37]} 35. Qe4 {[%clk 0:01:19]}  Rg7 {[%clk 0:00:27]} 36. g5 {[%clk 0:01:13]}  Rh7 {[%clk 0:00:21]} 37. Kg1 {[%clk 0:00:56]}  Nf6 {[%clk 0:00:21]} 38. gxf6 {[%clk 0:00:50]}  Rxa7 {[%clk 0:00:20]} 39. Qxg6+ {[%clk 0:00:51]}  Kf8 {[%clk 0:00:14]} 40. Rxe5 {[%clk 0:00:48]}  Qf7 {[%clk 0:00:07]} 41. Rxe8+ {[%clk 0:00:45]}  Kxe8 {[%clk 0:00:05]} 42. Qe4+ {[%clk 0:00:44]}  Kf8 {[%clk 0:00:04]} 43. Bd6+ {[%clk 0:00:42]}  Kg8 {[%clk 0:00:03]} 44. Qg4+ {[%clk 0:00:41]}  Kh8 {[%clk 0:00:03]} 45. Qh4+ {[%clk 0:00:38]}  Qh7 {[%clk 0:00:04]} 46. Qg5 {[%clk 0:00:35]}  Rf7 {[%clk 0:00:04]} 47. Be5 {[%clk 0:00:34]}  Qg8 {[%clk 0:00:03]} 48. Qg2 {[%clk 0:00:30]}  Qxg2+ {[%clk 0:00:03]} 49. Kxg2 {[%clk 0:00:31]}  Kh7 {[%clk 0:00:04]} 50. Kf3 {[%clk 0:00:31]}  Kg6 {[%clk 0:00:04]} 51. Ke4 {[%clk 0:00:31]}  c4 {[%clk 0:00:03]} 52. bxc4 {[%clk 0:00:31]}  bxc4 {[%clk 0:00:04]} 53. dxc4 {[%clk 0:00:31]}  Rd7 {[%clk 0:00:04]} 54. Bxd4 {[%clk 0:00:30]}  Rc7 {[%clk 0:00:04]} 55. c5 {[%clk 0:00:28]}  Kf7 {[%clk 0:00:05]} 56. Kd5 {[%clk 0:00:28]}  Ra7 {[%clk 0:00:04]} 57. c6 {[%clk 0:00:28]}  Ra2 {[%clk 0:00:04]} 58. c4 {[%clk 0:00:27]}  Ra5+ {[%clk 0:00:05]} 59. Kd6 {[%clk 0:00:26]}  Ra6 {[%clk 0:00:04]} 60. Kd7 {[%clk 0:00:25]}  Ra2 {[%clk 0:00:04]} 61. c7 {[%clk 0:00:24]}  Rd2 {[%clk 0:00:02]} 62. c8=Q {[%clk 0:00:24]}  Rxd4+ {[%clk 0:00:03]} 63. Kc7 {[%clk 0:00:17]}  Rxc4+ {[%clk 0:00:03]} 64. Kb7 {[%clk 0:00:15]}  Rxc8 {[%clk 0:00:04]} 65. Kxc8 {[%clk 0:00:15]}  Kxf6 {[%clk 0:00:05]} 1/2-1/2


[Site "https://www.chess.com"]